Workbook

Sheet Début
B1: Suivi des investissements
B5: Portefeuille
B26: Répartition des actifs

Sheet Portefeuille
B1: Suivi des investissements
B3: Portefeuille
B5: Société | C5: Catégorie | D5: Parts | E5: Cours | F5: Change | G5: Change (%) | H5: % du portefeuille | I5: Valeur
C6: Actions France | D6: 1,200 | E6: =_FV(TableauPortefeuille[[#This Row],[Société]],"price") -> 303.33 $ | F6: =_FV(TableauPortefeuille[[#This Row],[Société]],"Change") -> 0.68 $ | G6: =_FV(TableauPortefeuille[[#This Row],[Société]],"Change (%)",TRUE) -> 0.22% | H6: =IFERROR(I6/SUBTOTAL(109,TableauPortefeuille[Valeur]),"") -> 78% | I6: =D6 * E6 -> 363,996.00 $
C7: Obligations | D7: 1,300 | E7: =_FV(TableauPortefeuille[[#This Row],[Société]],"price") -> 10.95 $ | F7: =_FV(TableauPortefeuille[[#This Row],[Société]],"Change") -> 0.03 $ | G7: =_FV(TableauPortefeuille[[#This Row],[Société]],"Change (%)",TRUE) -> 0.27% | H7: =IFERROR(I7/SUBTOTAL(109,TableauPortefeuille[Valeur]),"") -> 3% | I7: 14,235.00 $
C8: Actions internationales | D8: 1,200 | E8: =_FV(TableauPortefeuille[[#This Row],[Société]],"price") -> 33.92 $ | F8: =_FV(TableauPortefeuille[[#This Row],[Société]],"Change") -> (0.03) $ | G8: =_FV(TableauPortefeuille[[#This Row],[Société]],"Change (%)",TRUE) -> -0.09% | H8: =IFERROR(I8/SUBTOTAL(109,TableauPortefeuille[Valeur]),"") -> 9% | I8: 40,704.00 $
C9: Trésorerie | D9: 10,000 | E9: =_FV(TableauPortefeuille[[#This Row],[Société]],"price") -> 1.00 $ | F9: =_FV(TableauPortefeuille[[#This Row],[Société]],"Change") -> 0 | G9: =_FV(TableauPortefeuille[[#This Row],[Société]],"Change (%)",TRUE) -> 0.00% | H9: =IFERROR(I9/SUBTOTAL(109,TableauPortefeuille[Valeur]),"") -> 2% | I9: 10,000.00 $
C10: Immobilier | D10: 125 | E10: =_FV(TableauPortefeuille[[#This Row],[Société]],"price") -> 151.49 $ | F10: =_FV(TableauPortefeuille[[#This Row],[Société]],"Change") -> (2.05) $ | G10: =_FV(TableauPortefeuille[[#This Row],[Société]],"Change (%)",TRUE) -> -1.34% | H10: =IFERROR(I10/SUBTOTAL(109,TableauPortefeuille[Valeur]),"") -> 4% | I10: 18,936.25 $
C11: Produits de base | D11: 100 | E11: =_FV(TableauPortefeuille[[#This Row],[Société]],"price") -> 172.09 $ | F11: =_FV(TableauPortefeuille[[#This Row],[Société]],"Change") -> 2.70 $ | G11: =_FV(TableauPortefeuille[[#This Row],[Société]],"Change (%)",TRUE) -> 1.59% | H11: =IFERROR(I11/SUBTOTAL(109,TableauPortefeuille[Valeur]),"") -> 4% | I11: 17,209.00 $
B12: Total | I12: =IFERROR(SUBTOTAL(109,TableauPortefeuille[Valeur]), "") -> 465,080.25 $

Sheet Répartition des actifs
B1: Suivi des investissements
B3: Répartition des actifs
B19: Catégorie | C19: Mon objectif | D19: Réel | E19: Écart | F19: Seuil | G19: Valeur
B20: Actions France | C20: 55% | D20: =IFERROR(G20/SUBTOTAL(109,TableauRépartitionActifs[Valeur]),"") -> 78% | E20: =D20 - C20 -> 23.3% | F20: =MIN(5%, $C20 * 25%) -> 5% | G20: =SUMIF(TableauPortefeuille[Catégorie], B20, TableauPortefeuille[Valeur]) -> 363,996.00 $
B21: Actions internationales | C21: 20% | D21: =IFERROR(G21/SUBTOTAL(109,TableauRépartitionActifs[Valeur]),"") -> 9% | E21: -11.2% | F21: 5% | G21: =SUMIF(TableauPortefeuille[Catégorie], B21, TableauPortefeuille[Valeur]) -> 40,704.00 $
B22: Obligations | C22: 10% | D22: =IFERROR(G22/SUBTOTAL(109,TableauRépartitionActifs[Valeur]),"") -> 3% | E22: -6.9% | F22: 3% | G22: =SUMIF(TableauPortefeuille[Catégorie], B22, TableauPortefeuille[Valeur]) -> 14,235.00 $
B23: Trésorerie | C23: 5% | D23: =IFERROR(G23/SUBTOTAL(109,TableauRépartitionActifs[Valeur]),"") -> 2% | E23: -2.8% | F23: 1% | G23: =SUMIF(TableauPortefeuille[Catégorie], B23, TableauPortefeuille[Valeur]) -> 10,000.00 $
B24: Immobilier | C24: 5% | D24: =IFERROR(G24/SUBTOTAL(109,TableauRépartitionActifs[Valeur]),"") -> 4% | E24: -0.9% | F24: 1% | G24: =SUMIF(TableauPortefeuille[Catégorie], B24, TableauPortefeuille[Valeur]) -> 18,936.25 $
B25: Produits de base | C25: 5% | D25: =IFERROR(G25/SUBTOTAL(109,TableauRépartitionActifs[Valeur]),"") -> 4% | E25: -1.3% | F25: 1% | G25: =SUMIF(TableauPortefeuille[Catégorie], B25, TableauPortefeuille[Valeur]) -> 17,209.00 $
